[Event "Biel Main Tournament 2019"]
[Site "Biel"]
[Date "2019.07.24"]
[Round "2.1"]
[White "Schneuwly, Achim"]
[Black "Gigon, Claude"]
[Result "1-0"]
[ECO "B01"]
[WhiteElo "1984"]
[BlackElo "1797"]
[Annotator "NA"]
[PlyCount "62"]
[EventDate "2019.07.20"]
[EventType "swiss"]
[EventCountry "SUI"]
[TimeControl "40/5400+30:1800+30"]

1. e4 {[%emt 0:00:10]} d5 {[%emt 0:00:00]} 2. exd5 {[%emt 0:00:27]} Qxd5 {[%emt 0:00:07]} 3. Nc3 {[%emt 0:00:06]} Qa5 {[%emt 0:00:18]} 4. d4 {[%emt 0:00:43]} Nf6 {[%emt 0:00:16]} 5. Bc4 {[%emt 0:22:11]} Bf5 {[%emt 1:00:57]} 6. Nf3 {[%emt 0:16:32]} e6 {[%emt 0:00:30]} 7. O-O {[%emt 0:00:30]} c6 {[%emt 0:00:30]} 8. Re1 {[%emt 0:00:30]} Be7 {[%emt 0:00:30]} 9. Ne5 {[%emt 0:00:30]} O-O {[%emt 0:00:30]} 10. g4 {[%emt 0:00:30]} Bg6 {[%emt 0:00:30]} 11. h4 {[%emt 0:00:30]} b5 {[%emt 0:00:30]} 12. Bf1 {[%emt 0:00:30]} b4 {[%emt 0:00:30]} 13. Nb1 {[%emt 0:00:30]} Be4 {[%emt 0:00:30]} 14. g5 {[%emt 0:00:30]} Bd5 {[%emt 0:00:30]} 15. gxf6 {[%emt 0:00:30]} Bxf6 {[%emt 0:00:30]} 16. Bg5 {[%emt 0:00:30]} Bxe5 {[%emt 0:00:30]} 17. dxe5 {[%emt 0:00:30]} c5 {[%emt 0:00:30]} 18. c4 {[%emt 0:00:30]} bxc3 {[%emt 0:00:30]} 19. Nxc3 {[%emt 0:00:30]} Nc6 {[%emt 0:00:30]} 20. Nxd5 {[%emt 0:01:01]} exd5 {[%emt 0:00:38]} 21. Qxd5 {[%emt 0:00:10]} Nd4 {[%emt 0:00:54]} 22. Bd3 {[%emt 0:00:38]} Ne6 {[%emt 0:06:09]} 23. Qe4 {[%emt 0:02:43]} g6 {[%emt 0:01:04]} 24. Bf6 {[%emt 0:00:52]} Rac8 {[%emt 0:09:52]} 25. h5 {[%emt 0:00:27]} Qd2 {[%emt 0:04:53]} 26. hxg6 {[%emt 0:00:59]} fxg6 {[%emt 0:06:37]} 27. Bc4 {[%emt 0:01:12]} Rce8 {[%emt 0:01:32]} 28. Red1 {[%emt 0:02:57]} Qh6 {[%emt 0:02:11]} 29. Rd6 {[%emt 0:01:17]} Rxf6 {[%emt 0:00:52]} 30. exf6 {[%emt 0:00:06]} Qg5+ {[%emt 0:00:12]} 31. Kf1 {[%emt 0:00:49]} Qf5 1-0

[Event "Biel Main Tournament 2019"]
[Site "Biel"]
[Date "2019.07.24"]
[Round "2.3"]
[White "Sudan, Georges"]
[Black "Stoffregen, Guenter"]
[Result "1-0"]
[ECO "B23"]
[WhiteElo "1978"]
[BlackElo "1778"]
[Annotator "NA"]
[PlyCount "43"]
[EventDate "2019.07.20"]
[EventType "swiss"]
[EventCountry "SUI"]
[TimeControl "40/5400+30:1800+30"]

1. e4 {[%emt 0:00:00]} c5 {[%emt 0:00:00]} 2. Nc3 {[%emt 0:00:22]} d6 {[%emt 0:00:28]} 3. f4 {[%emt 0:00:21]} Nc6 {[%emt 0:00:16]} 4. Nf3 {[%emt 0:00:26]} a6 {[%emt 0:00:48]} 5. Bc4 {[%emt 0:16:42]} e6 {[%emt 0:01:09]} 6. a4 {[%emt 0:00:36]} g6 {[%emt 0:01:18]} 7. O-O {[%emt 0:00:14]} Bg7 {[%emt 0:00:14]} 8. d3 {[%emt 0:01:12]} Nf6 {[%emt 0:01:13]} 9. Qe1 {[%emt 0:00:30]} Qc7 {[%emt 0:01:10]} 10. f5 {[%emt 0:03:26]} O-O {[%emt 0:02:40]} 11. Qh4 {[%emt 0:33:07]} exf5 {[%emt 0:00:31]} 12. Bg5 {[%emt 0:00:02]} fxe4 {[%emt 0:03:38]} 13. dxe4 {[%emt 0:01:32]} Ng4 {[%emt 0:01:09]} 14. Nd5 {[%emt 0:00:15]} Qa5 {[%emt 0:01:32]} 15. h3 {[%emt 0:06:44]} Nge5 {[%emt 0:01:32]} 16. Nf6+ {[%emt 0:07:34]} Bxf6 {[%emt 0:00:27]} 17. Bxf6 {[%emt 0:00:07]} Nxf3+ {[%emt 0:01:14]} 18. Rxf3 {[%emt 0:00:04]} h5 {[%emt 0:01:23]} 19. Qg5 {[%emt 0:02:25]} Kh7 {[%emt 0:00:26]} 20. Rg3 {[%emt 0:03:47]} Ne5 {[%emt 0:07:19]} 21. Bxe5 {[%emt 0:01:35]} dxe5 {[%emt 0:00:56]} 22. Bxf7 {[%emt 0:00:29]} 1-0

[Event "Biel Main Tournament 2019"]
[Site "Biel"]
[Date "2019.07.24"]
[Round "2.6"]
[White "Gerber, Renaud"]
[Black "Knoepfle, Andreas"]
[Result "1-0"]
[ECO "B25"]
[WhiteElo "1952"]
[BlackElo "1770"]
[Annotator "NA RC"]
[PlyCount "34"]
[EventDate "2019.07.20"]
[EventType "swiss"]
[EventCountry "SUI"]
[TimeControl "40/5400+30:1800+30"]

1. e4 {[%emt 0:00:00]} c5 {[%emt 0:00:00]} 2. Nc3 {[%emt 0:00:00]} Nc6 {[%emt 0:00:01]} 3. g3 {[%emt 0:00:00]} g6 {[%emt 0:00:33]} 4. Bg2 {[%emt 0:00:13]} Bg7 {[%emt 0:00:07]} 5. Nge2 {[%emt 0:00:15]} e6 {[%emt 0:05:23]} 6. O-O {[%emt 0:08:51]} d6 {[%emt 0:00:30]} 7. d3 {[%emt 0:06:23]} a6 {[%emt 0:26:37]} 8. Be3 {[%emt 0:02:30]} Qc7 {[%emt 0:01:23]} 9. Qd2 {[%emt 0:14:52]} b5 {[%emt 0:05:33]} 10. Nd1 {[%emt 0:01:27]} Bb7 {[%emt 0:05:54]} 11. c3 {[%emt 0:16:14]} Ne5 {[%emt 0:17:17]} 12. h3 {[%emt 0:05:56]} Ne7 {[%emt 0:01:11]} 13. f4 {[%emt 0:03:35]} N5c6 {[%emt 0:03:44]} 14. Nf2 {[%emt 0:00:31]} O-O {[%emt 0:00:30]} 15. g4 {[%emt 0:00:30]} f5 {[%emt 0:00:30]} 16. Ng3 {[%emt 0:00:30]} Rf7 {[%emt 0:00:30]} 17. a3 {[%emt 0:00:30]} Bh8 {[%emt 0:05:12]} 1-0

[Event "Biel Main Tournament 2019"]
[Site "Biel"]
[Date "2019.07.24"]
[Round "2.7"]
[White "Jorns, Benedikt"]
[Black "Brait, Wolfgang"]
[Result "0-1"]
[ECO "B13"]
[WhiteElo "1747"]
[BlackElo "1923"]
[Annotator "NA RC"]
[PlyCount "137"]
[EventDate "2019.07.20"]
[EventType "swiss"]
[EventCountry "SUI"]
[TimeControl "40/5400+30:1800+30"]

1. e4 {[%emt 0:00:43]} c6 {[%emt 0:00:00]} 2. Nf3 {[%emt 0:01:18]} d5 {[%emt 0:00:28]} 3. exd5 {[%emt 0:04:13]} cxd5 {[%emt 0:05:16]} 4. d4 {[%emt 0:50:34]} Nf6 {[%emt 0:50:11]} 5. Be2 {[%emt 0:00:30]} Bg4 {[%emt 0:00:30]} 6. O-O {[%emt 0:00:30]} e6 {[%emt 0:00:30]} 7. h3 {[%emt 0:00:30]} Bxf3 {[%emt 0:00:30]} 8. Bxf3 {[%emt 0:00:30]} Qb6 {[%emt 0:00:30]} 9. c3 {[%emt 0:00:30]} Bd6 {[%emt 0:00:30]} 10. Qc2 {[%emt 0:00:30]} O-O {[%emt 0:00:30]} 11. Bg5 {[%emt 0:00:30]} Nbd7 {[%emt 0:00:30]} 12. Re1 {[%emt 0:00:30]} Rac8 {[%emt 0:00:30]} 13. Re2 {[%emt 0:00:30]} Qc7 {[%emt 0:00:30]} 14. Nd2 {[%emt 0:00:30]} h6 {[%emt 0:00:30]} 15. Be3 {[%emt 0:00:30]} Rfe8 {[%emt 0:00:30]} 16. Rae1 {[%emt 0:00:30]} b5 {[%emt 0:00:30]} 17. Qb1 {[%emt 0:00:30]} Nb6 {[%emt 0:00:30]} 18. Rc1 {[%emt 0:00:30]} a5 {[%emt 0:00:30]} 19. Ree1 {[%emt 0:00:30]} Nc4 {[%emt 0:00:30]} 20. Nxc4 {[%emt 0:00:30]} bxc4 {[%emt 0:00:30]} 21. g4 {[%emt 0:00:30]} Qc6 {[%emt 0:00:30]} 22. Qc2 {[%emt 0:00:30]} Ne4 {[%emt 0:08:02]} 23. Bxe4 {[%emt 0:08:29]} dxe4 {[%emt 0:00:31]} 24. Qd2 {[%emt 0:02:50]} f5 {[%emt 0:01:48]} 25. Bf4 {[%emt 0:01:27]} Be7 {[%emt 0:06:01]} 26. Qe2 {[%emt 0:02:49]} Bf6 {[%emt 0:01:40]} 27. Rb1 {[%emt 0:02:51]} Qd5 {[%emt 0:00:26]} 28. Rf1 {[%emt 0:06:31]} g5 {[%emt 0:01:48]} 29. Bd2 {[%emt 0:02:18]} Rb8 {[%emt 0:01:08]} 30. f3 {[%emt 0:00:51]} exf3 {[%emt 0:01:21]} 31. Qxf3 {[%emt 0:00:37]} f4 {[%emt 0:00:12]} 32. Qxd5 {[%emt 0:01:19]} exd5 {[%emt 0:00:06]} 33. Rfe1 {[%emt 0:01:06]} a4 {[%emt 0:01:26]} 34. Rxe8+ {[%emt 0:00:46]} Rxe8 {[%emt 0:00:01]} 35. Re1 {[%emt 0:00:36]} Re4 {[%emt 0:00:45]} 36. Kf2 {[%emt 0:00:56]} Kf7 {[%emt 0:00:16]} 37. Re2 {[%emt 0:02:23]} Be7 {[%emt 0:00:29]} 38. Kf3 {[%emt 0:00:49]} Rxe2 {[%emt 0:01:17]} 39. Kxe2 {[%emt 0:00:02]} a3 {[%emt 0:00:07]} 40. Bc1 {[%emt 0:03:39]} axb2 {[%emt 0:00:43]} 41. Bxb2 {[%emt 0:30:02]} Ke6 {[%emt 0:30:14]} 42. Kf3 {[%emt 0:04:51]} Kd7 {[%emt 0:00:08]} 43. h4 {[%emt 0:00:30]} Kc6 {[%emt 0:00:20]} 44. hxg5 {[%emt 0:00:30]} hxg5 {[%emt 0:00:06]} 45. Bc1 {[%emt 0:00:30]} Bd6 {[%emt 0:00:07]} 46. Ke2 {[%emt 0:00:00]} Kb5 {[%emt 0:00:00]} 47. Kf2 {[%emt 0:00:00]} Ka4 {[%emt 0:00:00]} 48. Kf3 {[%emt 0:00:00]} Bc7 {[%emt 0:00:00]} 49. Kf2 {[%emt 0:00:00]} Bb8 {[%emt 0:00:00]} 50. Ke2 {[%emt 0:00:00]} Bd6 {[%emt 0:00:00]} 51. Kf3 {[%emt 0:00:00]} Ba3 {[%emt 0:00:00]} 52. Bxf4 {[%emt 0:00:00]} gxf4 {[%emt 0:00:00]} 53. g5 {[%emt 0:00:00]} Bf8 {[%emt 0:00:00]} 54. Kxf4 {[%emt 0:00:00]} Ka3 {[%emt 0:00:00]} 55. Ke5 {[%emt 0:00:00]} Kxa2 {[%emt 0:00:00]} 56. Kf6 {[%emt 0:00:23]} Kb3 {[%emt 0:00:00]} 57. Kf7 {[%emt 0:00:14]} Bg7 {[%emt 0:00:00]} 58. Kxg7 {[%emt 0:00:19]} Kxc3 {[%emt 0:00:00]} 59. Kf7 {[%emt 0:00:22]} Kxd4 {[%emt 0:00:00]} 60. g6 {[%emt 0:00:30]} c3 {[%emt 0:00:00]} 61. g7 {[%emt 0:00:13]} c2 {[%emt 0:00:00]} 62. g8=Q {[%emt 0:00:13]} c1=Q {[%emt 0:00:00]} 63. Qg4+ {[%emt 0:02:58]} Kd3 {[%emt 0:00:00]} 64. Qf5+ {[%emt 0:00:21]} Kd4 {[%emt 0:00:00]} 65. Qg4+ {[%emt 0:00:48]} Kc3 {[%emt 0:00:00]} 66. Qf3+ {[%emt 0:01:19]} Kc4 {[%emt 0:00:04]} 67. Qe2+ {[%emt 0:00:28]} Kb4 {[%emt 0:01:24]} 68. Qg4+ {[%emt 0:00:13]} Qc4 {[%emt 0:00:13]} 69. Qf5 {[%emt 0:02:22]} 0-1

[Event "Biel Main Tournament 2019"]
[Site "Biel"]
[Date "2019.07.24"]
[Round "2.8"]
[White "Lesniak, Julien"]
[Black "Marty, Fridolin"]
[Result "0-1"]
[ECO "B47"]
[WhiteElo "1743"]
[BlackElo "1921"]
[Annotator "NA RC"]
[PlyCount "49"]
[EventDate "2019.07.20"]
[EventType "swiss"]
[EventCountry "SUI"]
[TimeControl "40/5400+30:1800+30"]

1. e4 {[%emt 0:18:09]} c5 {[%emt 0:00:00]} 2. Nf3 {[%emt 0:00:55]} e6 {[%emt 0:00:00]} 3. d4 {[%emt 0:00:38]} cxd4 {[%emt 0:00:02]} 4. Nxd4 {[%emt 0:00:12]} Nc6 {[%emt 0:00:06]} 5. Nc3 {[%emt 0:01:36]} Qc7 {[%emt 0:00:11]} 6. Nxc6 {[%emt 0:02:51]} bxc6 {[%emt 0:00:09]} 7. Bd3 {[%emt 0:01:59]} Nf6 {[%emt 0:01:33]} 8. O-O {[%emt 0:01:26]} Be7 {[%emt 0:08:21]} 9. Be3 {[%emt 0:08:35]} d6 {[%emt 0:00:31]} 10. Qe2 {[%emt 0:30:33]} e5 {[%emt 0:06:13]} 11. f3 {[%emt 0:16:42]} O-O {[%emt 0:17:09]} 12. Bc4 {[%emt 0:00:30]} Be6 {[%emt 0:00:30]} 13. Bxe6 {[%emt 0:00:30]} fxe6 {[%emt 0:00:30]} 14. Qc4 {[%emt 0:00:30]} d5 {[%emt 0:00:30]} 15. exd5 {[%emt 0:00:30]} exd5 {[%emt 0:00:30]} 16. Qd3 {[%emt 0:00:30]} d4 {[%emt 0:00:30]} 17. Qc4+ {[%emt 0:00:30]} Kh8 {[%emt 0:00:30]} 18. Nb5 {[%emt 0:00:30]} Qb6 {[%emt 0:00:30]} 19. Nxd4 {[%emt 0:00:30]} exd4 {[%emt 0:00:30]} 20. Bxd4 {[%emt 0:00:30]} Qb5 {[%emt 0:00:30]} 21. Qxb5 {[%emt 0:00:30]} cxb5 {[%emt 0:00:30]} 22. Rfe1 {[%emt 0:00:30]} Rfe8 {[%emt 0:00:30]} 23. Re6 {[%emt 0:00:30]} Bb4 {[%emt 0:00:30]} 24. Ra6 {[%emt 0:00:30]} Re7 {[%emt 0:00:30]} 25. c3 {[%emt 0:02:31]} 0-1

[Event "Biel Main Tournament 2019"]
[Site "Biel"]
[Date "2019.07.24"]
[Round "3.1"]
[White "Fondain, Georges"]
[Black "Schneuwly, Achim"]
[Result "0-1"]
[ECO "B23"]
[WhiteElo "1839"]
[BlackElo "1984"]
[Annotator "NA"]
[PlyCount "41"]
[EventDate "2019.07.20"]
[EventType "swiss"]
[EventCountry "SUI"]
[SourceTitle "playchess.com"]
[Source "ChessBase"]
[SourceQuality "1"]
[TimeControl "40/5400+30:1800+30"]

1. e4 {[%emt 0:00:00]} c5 {[%emt 0:00:00]} 2. Nc3 {[%emt 0:00:00]} e6 {[%emt 0:00:00]} 3. f4 {[%emt 0:00:00]} Nc6 {[%emt 0:00:16]} 4. Nf3 {[%emt 0:00:00]} a6 {[%emt 0:01:39]} 5. d3 {[%emt 0:02:50]} b5 {[%emt 0:00:11]} 6. g3 {[%emt 0:01:34]} b4 {[%emt 0:04:07]} 7. Ne2 {[%emt 0:00:08]} Be7 {[%emt 0:02:03]} 8. Bg2 {[%emt 0:00:06]} Nf6 {[%emt 0:00:12]} 9. O-O {[%emt 0:00:06]} d5 {[%emt 0:00:08]} 10. e5 {[%emt 0:03:29]} Nd7 {[%emt 0:00:06]} 11. c4 {[%emt 0:10:37]} bxc3 {[%emt 0:01:01]} 12. bxc3 {[%emt 0:00:07]} Rb8 {[%emt 0:01:02]} 13. Be3 {[%emt 0:01:59]} O-O {[%emt 0:05:24]} 14. Qc2 {[%emt 0:04:15]} f6 {[%emt 0:02:56]} 15. d4 {[%emt 0:03:23]} Qa5 {[%emt 0:09:27]} 16. f5 {[%emt 0:06:52]} cxd4 {[%emt 0:06:56]} 17. fxe6 {[%emt 0:13:09]} Rd8 {[%emt 0:34:40]} 18. Kh1 {[%emt 0:13:00]} g6 {[%emt 0:12:33]} 19. h4 {[%emt 0:27:11]} Kg7 {[%emt 0:00:51]} 20. Bh3 {[%emt 0:03:12]} f5 {[%emt 0:07:30]} 21. Kh2 {[%emt 0:03:03]} 0-1

[Event "Biel Main Tournament 2019"]
[Site "Biel"]
[Date "2019.07.24"]
[Round "3.2"]
[White "Esper, Christian"]
[Black "Altok, Mesut"]
[Result "0-1"]
[ECO "B18"]
[WhiteElo "1979"]
[BlackElo "1825"]
[Annotator "NA"]
[PlyCount "34"]
[EventDate "2019.07.20"]
[EventType "swiss"]
[EventCountry "SUI"]
[SourceTitle "playchess.com"]
[Source "ChessBase"]
[SourceQuality "1"]
[TimeControl "40/5400+30:1800+30"]

1. e4 {[%emt 0:00:02]} c6 {[%emt 0:01:08]} 2. d4 {[%emt 0:00:54]} d5 {[%emt 0:00:05]} 3. Nc3 {[%emt 0:01:07]} dxe4 {[%emt 0:00:49]} 4. Nxe4 {[%emt 0:00:16]} Bf5 {[%emt 0:01:31]} 5. Ng3 {[%emt 0:00:34]} Bg6 {[%emt 0:13:20]} 6. h4 {[%emt 0:01:16]} h5 {[%emt 0:00:33]} 7. Nf3 {[%emt 0:00:51]} Nd7 {[%emt 0:00:13]} 8. Bd3 {[%emt 0:03:25]} Bxd3 {[%emt 0:00:08]} 9. Qxd3 {[%emt 0:00:14]} e6 {[%emt 0:13:28]} 10. Bg5 {[%emt 0:06:15]} Qa5+ {[%emt 0:01:52]} 11. c3 {[%emt 0:05:14]} Ngf6 {[%emt 0:00:19]} 12. O-O {[%emt 0:03:11]} Bd6 {[%emt 0:01:55]} 13. Ne4 {[%emt 0:03:57]} Nxe4 {[%emt 0:00:41]} 14. Qxe4 {[%emt 0:00:18]} Nf6 {[%emt 0:00:50]} 15. Qe2 {[%emt 0:04:44]} Ng4 {[%emt 0:24:04]} 16. Rfe1 {[%emt 0:11:42]} Bc5 {[%emt 0:01:54]} 17. Rf1 {[%emt 0:29:52]} Bb6 {[%emt 0:04:22]} 0-1

[Event "Biel Main Tournament 2019"]
[Site "Biel"]
[Date "2019.07.24"]
[Round "3.4"]
[White "Prieb, Robert"]
[Black "Gerber, Renaud"]
[Result "1-0"]
[ECO "A42"]
[WhiteElo "1824"]
[BlackElo "1952"]
[Annotator "NA"]
[PlyCount "29"]
[EventDate "2019.07.20"]
[EventType "swiss"]
[EventCountry "SUI"]
[SourceTitle "playchess.com"]
[Source "ChessBase"]
[SourceQuality "1"]
[TimeControl "40/5400+30:1800+30"]

1. d4 {[%emt 0:00:00]} g6 {[%emt 0:00:00]} 2. e4 {[%emt 0:00:00]} Bg7 {[%emt 0:00:00]} 3. Nf3 {[%emt 0:00:21]} d6 {[%emt 0:00:00]} 4. c4 {[%emt 0:00:28]} Nc6 {[%emt 0:00:03]} 5. Be2 {[%emt 0:00:39]} e5 {[%emt 0:00:07]} 6. d5 {[%emt 0:03:41]} Nce7 {[%emt 0:00:06]} 7. Nc3 {[%emt 0:06:38]} f5 {[%emt 0:00:43]} 8. Ng5 {[%emt 0:04:20]} Nf6 {[%emt 0:00:10]} 9. f3 {[%emt 0:05:02]} f4 {[%emt 0:01:31]} 10. Qa4+ {[%emt 0:07:01]} Bd7 {[%emt 0:02:45]} 11. Ne6 {[%emt 0:02:40]} Bxa4 {[%emt 0:00:25]} 12. Nxd8 {[%emt 0:00:11]} Rxd8 {[%emt 0:01:04]} 13. Nxa4 {[%emt 0:00:22]} O-O {[%emt 0:00:13]} 14. Nc3 {[%emt 0:01:39]} c6 {[%emt 0:01:04]} 15. b4 {[%emt 0:04:28]} 1-0

[Event "Biel Main Tournament 2019"]
[Site "Biel"]
[Date "2019.07.24"]
[Round "3.5"]
[White "Haag, Rolf"]
[Black "Jud, Marc"]
[Result "1/2-1/2"]
[ECO "D05"]
[WhiteElo "1821"]
[BlackElo "1940"]
[Annotator "NA"]
[PlyCount "32"]
[EventDate "2019.07.20"]
[EventType "swiss"]
[EventCountry "SUI"]
[SourceTitle "playchess.com"]
[Source "ChessBase"]
[SourceQuality "1"]
[TimeControl "40/5400+30:1800+30"]

1. d4 {[%emt 0:00:00]} Nf6 {[%emt 0:00:00]} 2. Nf3 {[%emt 0:00:21]} d5 {[%emt 0:00:00]} 3. e3 {[%emt 0:00:48]} e6 {[%emt 0:01:28]} 4. Bd3 {[%emt 0:00:20]} c5 {[%emt 0:00:24]} 5. b3 {[%emt 0:00:11]} cxd4 {[%emt 0:03:11]} 6. exd4 {[%emt 0:00:14]} Bb4+ {[%emt 0:00:17]} 7. Bd2 {[%emt 0:02:45]} Bxd2+ {[%emt 0:01:52]} 8. Nbxd2 {[%emt 0:02:01]} Nc6 {[%emt 0:00:19]} 9. O-O {[%emt 0:09:11]} O-O {[%emt 0:00:17]} 10. c3 {[%emt 0:00:44]} Bd7 {[%emt 0:03:42]} 11. Ne5 {[%emt 0:00:22]} Rc8 {[%emt 0:00:38]} 12. Rc1 {[%emt 0:00:59]} Be8 {[%emt 0:08:15]} 13. f4 {[%emt 0:05:49]} g6 {[%emt 0:02:52]} 14. Qf3 {[%emt 0:08:19]} Nd7 {[%emt 0:03:00]} 15. Qh3 {[%emt 0:04:26]} f5 {[%emt 0:02:32]} 16. Ndf3 {[%emt 0:02:22]} Kh8 {[%emt 0:33:21]} 1/2-1/2

[Event "Biel Main Tournament 2019"]
[Site "Biel"]
[Date "2019.07.24"]
[Round "3.6"]
[White "Brait, Wolfgang"]
[Black "Ehle, Eric"]
[Result "1-0"]
[ECO "A50"]
[WhiteElo "1923"]
[BlackElo "1800"]
[Annotator "NA"]
[PlyCount "22"]
[EventDate "2019.07.20"]
[EventType "swiss"]
[EventCountry "SUI"]
[SourceTitle "playchess.com"]
[Source "ChessBase"]
[SourceQuality "1"]
[TimeControl "40/5400+30:1800+30"]

1. e4 {[%emt 0:00:00]} b6 {[%emt 0:00:00]} 2. d4 {[%emt 0:05:21]} e6 {[%emt 0:00:00]} 3. c4 {[%emt 0:00:50]} Bb7 {[%emt 0:00:24]} 4. Nc3 {[%emt 0:00:07]} Bb4 {[%emt 0:01:40]} 5. Bd3 {[%emt 0:00:27]} Nf6 {[%emt 0:02:49]} 6. f3 {[%emt 0:05:23]} O-O {[%emt 0:04:40]} 7. Nge2 {[%emt 0:01:26]} d5 {[%emt 0:07:11]} 8. O-O {[%emt 0:01:21]} dxc4 {[%emt 0:02:37]} 9. Bxc4 {[%emt 0:00:37]} Nbd7 {[%emt 0:08:06]} 10. e5 {[%emt 0:18:01]} Nd5 {[%emt 0:08:31]} 11. Kh1 {[%emt 0:18:20]} Kh8 {[%emt 0:45:44]} 1-0

[Event "Biel Main Tournament 2019"]
[Site "Biel"]
[Date "2019.07.24"]
[Round "3.7"]
[White "Marty, Fridolin"]
[Black "Jenny, Philipp"]
[Result "1/2-1/2"]
[ECO "D10"]
[WhiteElo "1921"]
[BlackElo "1752"]
[Annotator "NA"]
[PlyCount "35"]
[EventDate "2019.07.20"]
[EventType "swiss"]
[EventCountry "SUI"]
[SourceTitle "playchess.com"]
[Source "ChessBase"]
[SourceQuality "1"]
[TimeControl "40/5400+30:1800+30"]

1. d4 {[%emt 0:00:00]} d5 {[%emt 0:00:00]} 2. c4 {[%emt 0:00:09]} c6 {[%emt 0:00:00]} 3. cxd5 {[%emt 0:00:07]} cxd5 {[%emt 0:00:00]} 4. Bg5 {[%emt 0:00:09]} Nf6 {[%emt 0:01:17]} 5. Bxf6 {[%emt 0:01:42]} exf6 {[%emt 0:00:23]} 6. e3 {[%emt 0:00:08]} Nc6 {[%emt 0:00:53]} 7. Nc3 {[%emt 0:00:04]} Bb4 {[%emt 0:00:58]} 8. Bd3 {[%emt 0:00:41]} O-O {[%emt 0:00:55]} 9. Rc1 {[%emt 0:00:23]} Re8 {[%emt 0:03:35]} 10. Bb1 {[%emt 0:01:37]} Ne7 {[%emt 0:05:31]} 11. Qf3 {[%emt 0:03:52]} a6 {[%emt 0:16:31]} 12. Nge2 {[%emt 0:00:33]} Be6 {[%emt 0:00:58]} 13. O-O {[%emt 0:02:01]} Qd7 {[%emt 0:01:48]} 14. h3 {[%emt 0:01:00]} Rac8 {[%emt 0:02:53]} 15. Ng3 {[%emt 0:02:12]} Ng6 {[%emt 0:03:43]} 16. Qh5 {[%emt 0:05:25]} Nf8 {[%emt 0:06:34]} 17. Qd1 {[%emt 0:26:39]} h6 {[%emt 0:19:03]} 18. a3 {[%emt 0:00:30]} 1/2-1/2

[Event "Biel Main Tournament 2019"]
[Site "Biel"]
[Date "2019.07.24"]
[Round "3.8"]
[White "Jaggy, Matteo"]
[Black "Lada, Ireneusz"]
[Result "1/2-1/2"]
[ECO "A41"]
[WhiteElo "1819"]
[BlackElo "1914"]
[Annotator "NA"]
[PlyCount "44"]
[EventDate "2019.07.20"]
[EventType "swiss"]
[EventCountry "SUI"]
[SourceTitle "playchess.com"]
[Source "ChessBase"]
[SourceQuality "1"]
[TimeControl "40/5400+30:1800+30"]

1. d4 {[%emt 0:00:00]} d6 {[%emt 0:00:00]} 2. c4 {[%emt 0:00:06]} e5 {[%emt 0:00:03]} 3. d5 {[%emt 0:00:58]} f5 {[%emt 0:00:02]} 4. Nf3 {[%emt 0:03:47]} Nf6 {[%emt 0:00:29]} 5. Nc3 {[%emt 0:01:09]} g6 {[%emt 0:00:33]} 6. Qc2 {[%emt 0:02:20]} Bg7 {[%emt 0:00:38]} 7. Bg5 {[%emt 0:04:42]} h6 {[%emt 0:03:37]} 8. Bxf6 {[%emt 0:00:37]} Qxf6 {[%emt 0:00:02]} 9. e4 {[%emt 0:02:03]} Na6 {[%emt 0:00:19]} 10. a3 {[%emt 0:02:53]} Nc5 {[%emt 0:01:03]} 11. Nd2 {[%emt 0:00:53]} a5 {[%emt 0:00:35]} 12. b3 {[%emt 0:01:34]} O-O {[%emt 0:01:14]} 13. f3 {[%emt 0:01:12]} Bd7 {[%emt 0:00:57]} 14. Be2 {[%emt 0:03:25]} h5 {[%emt 0:00:30]} 15. O-O-O {[%emt 0:06:09]} Bh6 {[%emt 0:00:08]} 16. Kb2 {[%emt 0:01:01]} Bxd2 {[%emt 0:11:39]} 17. Qxd2 {[%emt 0:05:35]} a4 {[%emt 0:00:05]} 18. b4 {[%emt 0:02:16]} Nb3 {[%emt 0:00:01]} 19. Qe3 {[%emt 0:01:17]} Nd4 {[%emt 0:01:53]} 20. Bd3 {[%emt 0:02:01]} c5 {[%emt 0:01:04]} 21. b5 {[%emt 0:01:12]} Kh7 {[%emt 0:57:48]} 22. Rhg1 {[%emt 0:27:18]} h4 {[%emt 0:00:00]} 1/2-1/2

[Event "Biel Main Tournament 2019"]
[Site "Biel"]
[Date "2019.07.26"]
[Round "5.1"]
[White "Altok, Mesut"]
[Black "Schneuwly, Achim"]
[Result "0-1"]
[ECO "B40"]
[WhiteElo "1825"]
[BlackElo "1984"]
[Annotator "NA"]
[PlyCount "78"]
[EventDate "2019.07.20"]
[EventType "swiss"]
[EventCountry "SUI"]
[SourceTitle "playchess.com"]
[Source "ChessBase"]
[SourceQuality "1"]
[TimeControl "40/5400+30:1800+30"]

1. e4 {[%emt 0:04:13]} c5 {[%emt 0:00:00]} 2. Nf3 {[%emt 0:02:10]} e6 {[%emt 0:00:09]} 3. Bd3 {[%emt 0:00:22]} Nc6 {[%emt 0:01:07]} 4. c3 {[%emt 0:01:56]} Nf6 {[%emt 0:01:03]} 5. O-O {[%emt 0:01:25]} d5 {[%emt 0:03:18]} 6. exd5 {[%emt 0:02:34]} Nxd5 {[%emt 0:01:43]} 7. Bb5 {[%emt 0:04:19]} Bd7 {[%emt 0:02:09]} 8. d4 {[%emt 0:00:08]} cxd4 {[%emt 0:00:55]} 9. cxd4 {[%emt 0:00:13]} Be7 {[%emt 0:02:43]} 10. a3 {[%emt 0:01:32]} Ne5 {[%emt 0:08:19]} 11. Bxd7+ {[%emt 0:03:44]} Nxd7 {[%emt 0:00:04]} 12. Qd3 {[%emt 0:01:22]} Rc8 {[%emt 0:03:41]} 13. Nbd2 {[%emt 0:03:01]} Qc7 {[%emt 0:05:37]} 14. Ne4 {[%emt 0:02:47]} Qc2 {[%emt 0:01:30]} 15. Rd1 {[%emt 0:03:24]} h6 {[%emt 0:02:21]} 16. Nc5 {[%emt 0:06:01]} Qxd3 {[%emt 0:00:13]} 17. Nxd3 {[%emt 0:00:07]} O-O {[%emt 0:01:31]} 18. Bd2 {[%emt 0:04:33]} Rc2 {[%emt 0:04:48]} 19. Rac1 {[%emt 0:11:59]} Rfc8 {[%emt 0:00:08]} 20. Rxc2 {[%emt 0:01:19]} Rxc2 {[%emt 0:01:37]} 21. Rc1 {[%emt 0:05:09]} Rxc1+ {[%emt 0:00:19]} 22. Bxc1 {[%emt 0:00:01]} Kf8 {[%emt 0:09:50]} 23. Kf1 {[%emt 0:03:03]} Bd6 {[%emt 0:00:15]} 24. h4 {[%emt 0:14:33]} Ke7 {[%emt 0:00:50]} 25. Nfe5 {[%emt 0:01:12]} Bxe5 {[%emt 0:04:27]} 26. dxe5 {[%emt 0:01:37]} Kd8 {[%emt 0:07:50]} 27. g4 {[%emt 0:04:22]} Ne7 {[%emt 0:03:34]} 28. h5 {[%emt 0:00:26]} Kc7 {[%emt 0:01:04]} 29. Ke2 {[%emt 0:05:10]} Nc6 {[%emt 0:01:36]} 30. f4 {[%emt 0:01:03]} Nd4+ {[%emt 0:00:50]} 31. Kf2 {[%emt 0:00:09]} Kc6 {[%emt 0:01:43]} 32. Be3 {[%emt 0:06:48]} Kd5 {[%emt 0:00:55]} 33. b4 {[%emt 0:01:29]} a6 {[%emt 0:04:43]} 34. Nc5 {[%emt 0:02:14]} Nxc5 {[%emt 0:00:40]} 35. bxc5 {[%emt 0:00:01]} Nc2 {[%emt 0:02:53]} 36. Kf3 {[%emt 0:02:03]} Nxe3 {[%emt 0:00:06]} 37. Kxe3 {[%emt 0:00:02]} Kxc5 {[%emt 0:00:06]} 38. g5 {[%emt 0:00:27]} Kd5 {[%emt 0:01:15]} 39. f5 {[%emt 0:00:10]} exf5 {[%emt 0:00:53]} 0-1